Cogmind - Beta 14 @@@ ROGUE MODE // 2025.04.29 @ 22:39:24 Player: fran Result: Self-destructed Performance ------------- Evolutions (1) 500 Regions Visited (2) 400 Robots Destroyed (15) 75 Value Destroyed (377) 377 Prototype IDs (1) 20 Alien Tech Used (0) 0 Bonus (0) 0 TOTAL SCORE: 1372 Bonus ------- None Cogmind --------- Core Integrity 27/400 Matter 293/300 Energy 28/100 System Corruption 0% Temperature Cool (0) Movement Rolling (135) Ox3 Location -9/Materials Parts ------- > --- POWER (1) -------- (None) > --- PROPULSION (2) --- Armored Wheel Armored Wheel > --- UTILITY (4) ------ Improved Heat Sink Small Storage Unit Huge Storage Unit Signal Interpreter > --- WEAPON (2) ------- (None) > --- INVENTORY (25) --- Light Treads Light Treads Light Treads Wheel Wheel Armored Wheel Armored Wheel Medium Laser Light Assault Rifle Peak State ------------ > --- POWER ------------ (None) > --- PROPULSION ------- Armored Wheel Armored Wheel > --- UTILITY ---------- Improved Heat Sink Small Storage Unit Huge Storage Unit Signal Interpreter > --- WEAPON ----------- Heavy EM Pulse Gun Heavy EM Pulse Gun > --- INVENTORY -------- Light Treads Light Treads Light Treads Wheel Wheel Armored Wheel Armored Wheel Medium Laser Advanced Beam Cannon Light Assault Rifle [Rating: 15] Favorites ----------- Power Ion Engine Engine Ion Engine Propulsion Wheel Treads Light Treads Wheel Wheel Utility Small Storage Unit Device Improved Heat Sink Storage Small Storage Unit Processor Signal Interpreter Protection Light Armor Plating Weapon Light Assault Rifle Energy Gun EM Pulse Gun Energy Cannon Advanced Beam Cannon Ballistic Gun Light Assault Rifle Build | -11 -10 -9 ------- Run | Yrd Mat Mat Slots Evolved 2 | . . 2 Power . | . . . Propulsion . | . . . Utility 2 | . . 2 Weapon . | . . . Parts Attached 29 | 6 1 22 Power 2 | 1 . 1 Engine 2 | 1 . 1 Core . | . . . Reactor . | . . . Propulsion 12 | 2 . 10 Treads 4 | . . 4 Leg . | . . . Wheel 8 | 2 . 6 Hover . | . . . Flight . | . . . Utility 5 | 1 1 3 Device 1 | . . 1 Storage 2 | 1 . 1 Processor 1 | . 1 . Hackware . | . . . Protection 1 | . . 1 Artifact . | . . . Weapon 10 | 2 . 8 Energy Gun 6 | 1 . 5 Energy Cannon 2 | . . 2 Ballistic Gun 2 | 1 . 1 Ballistic Cannon . | . . . Launcher . | . . . Special Weapon . | . . . Impact Weapon . | . . . Slashing Weapon . | . . . Piercing Weapon . | . . . Special Melee Weapon . | . . . Unidentified Prototypes 1 | . . 1 Parts Lost 11 | . . 11 Power 2 | . . 2 Propulsion 2 | . . 2 Utility 1 | . . 1 Weapon 6 | . . 6 Highest Loss Streak 5 | . . 5 To Critical Strikes . | . . . Average Slot Usage (%) 85 | . 98 82 Engine 4 | . 14 2 Treads 7 | . . 9 Wheel 15 | . 28 12 Device 2 | . . 2 Storage 19 | . 14 20 Processor 11 | . 12 11 Protection 3 | . . 4 Energy Gun 7 | . 14 6 Energy Cannon 3 | . . 4 Ballistic Gun 9 | . 14 8 Peak Build Rating 15 | 6 7 15 Average Rating 9 | 3 6 10 On Entrance 4 | . 6 7 Naked Turns . | . . . Heaviest Build 93 | 13 13 93 Greatest Support 40 | 20 20 40 Greatest Overweight (x) 4 | . . 4 Average Overweight (x) 1 | . . 2 Largest Inventory Capacity 25 | 8 8 25 Average Capacity 18 | 5 8 22 Most Carried 11 | 6 8 11 Average Carried 8 | 3 7 8 Final Capacity 25 | 8 8 25 Final Carried 9 | 6 8 9 Class Distribution -------------------- 100% | Mutant Dominant Class ---------------- Mutant | -10/Materials Mutant | -9/Materials Resources | -11 -10 -9 ----------- Run | Yrd Mat Mat Matter Collected 470 | 175 33 262 Remotely . | . . . Salvage Created 453 | . 33 420 Parts 28 | . 5 23 Haulers Intercepted . | . . . Recyclers Shooed . | . . . Parts Field Recycled . | . . . Retrieved Matter . | . . . Parts Self-Destructed . | . . . Prevented . | . . . Kills | -11 -10 -9 ------- Run | Yrd Mat Mat Combat Hostiles Destroyed 13 | . 2 11 Guns 11 | . 2 9 Cannons 2 | . . 2 Classes Destroyed 4 | . 1 3 Watcher 2 | . . 2 Swarmer 6 | . 2 4 Grunt 6 | . . 6 Sentry 1 | . . 1 Best Kill Streak 4 | . 2 4 Combat Bots Only 4 | . 2 4 Max Kills in Single Turn 1 | . 1 1 Gunslinging . | . . . Exploded . | . . . Melee . | . . . Uniques/NPCs Destroyed . | . . . Combat | -11 -10 -9 -------- Run | Yrd Mat Mat Hostile Shots Fired 223 | . 11 212 Missed 57 | . 6 51 Damage Taken 1894 | . 48 1846 Core 390 | . 17 373 Absorbed by Shields . | . . . Core Remaining (%) 96 | 100 93 . Volleys Fired 74 | . 3 71 Largest 2 | . 2 2 Hottest 90 | . 60 90 Shots Fired 102 | . 5 97 Gun 90 | . 5 85 Cannon 12 | . . 12 Launcher . | . . . Special . | . . . Kinetic 52 | . 3 49 Thermal 31 | . . 31 Explosive . | . . . Electromagnetic 19 | . 2 17 Robot Hit Streak 15 | . 3 15 Robot Miss Streak 7 | . 1 7 Penetration Max . | . . . Secondary Targets 1 | . . 1 Max Gunslinging Chain 1 | . . 1 Shots Hit Robots 59 | . 3 56 Core Hits 25 | . 2 23 Critical Kills . | . . . Critical Parts Destroyed 1 | . 1 . Critical Strikes 4 | . 1 3 Burn 2 | . . 2 Destroy 1 | . 1 . Corrupt 1 | . . 1 Melee Attacks . | . . . Impact . | . . . Slashing . | . . . Piercing . | . . . Sneak Attacks . | . . . Combat Hostiles . | . . . Follow-up Attacks . | . . . Damage Inflicted 745 | . 41 704 Guns 589 | . 30 559 Cannons 143 | . . 143 Explosions . | . . . Melee . | . . . Ramming 13 | . 11 2 Kinetic 199 | . 18 181 Thermal 329 | . . 329 Explosive . | . . . Electromagnetic 204 | . 12 192 Impact . | . . . Slashing . | . . . Piercing . | . . . Highest Corruption . | . . . Average Corruption . | . . . Corruption Purged . | . . . Corruption Blocked . | . . . Overload Shots . | . . . Overflow Damage . | . . . Projectiles . | . . . Explosions . | . . . Melee . | . . . Knockbacks . | . . . Impact . | . . . Kinetic . | . . . Secondary . | . . . Self-Inflicted Damage 6 | . 5 1 Shots . | . . . Rammed 4 | . 3 1 Targets Rammed 4 | . 3 1 Kicked . | . . . Crushed . | . . . Highest Temperature 222 | . 20 222 Average Temperature 64 | . 15 66 Received Heat Transfer 669 | . 6 663 Effects 2 | . . 2 Interference 2 | . . 2 Siege Activations . | . . . Robots Corrupted . | . . . Combat Hostiles . | . . . Parts Fried 1 | . . 1 Impact Corruptions . | . . . Robots Melted . | . . . Combat Hostiles . | . . . Parts Melted 4 | . . 4 Heat Transferred 962 | . . 962 Parts Sabotaged . | . . . Parts Stolen . | . . . Parts Stripped . | . . . Power Chain Reactions . | . . . Alert | -11 -10 -9 ------- Run | Yrd Mat Mat Peak Influence 317 | . 185 317 Initial 78 | . . 78 Average 144 | . 66 177 Maximum Alert Level 1 | . . 1 Low Security (%) 70 | 100 100 60 Level 1 29 | . . 39 Level 2 . | . . . Level 3 . | . . . Level 4 . | . . . Level 5 . | . . . High Security . | . . . Max Security . | . . . Squads Dispatched 3 | . 2 1 Investigation 2 | . 2 . Extermination . | . . . Reinforcement 1 | . . 1 Assault . | . . . Garrison . | . . . Intercept . | . . . Searches Triggered . | . . . Construction Impeded . | . . . Haulers Reinforced . | . . . Active Scanning Responses . | . . . Cargo Convoy Interrupts . | . . . Stealth | -11 -10 -9 --------- Run | Yrd Mat Mat Distress Signals 2 | . 1 1 Communications Jammed . | . . . Distress Signals . | . . . Times Spotted 36 | . 12 24 Peak Tracking Total 7 | . 7 6 Tactical Retreats 4 | . 2 2 Traps | -11 -10 -9 ------- Run | Yrd Mat Mat Traps Triggered 1 | . 1 . Indirectly . | . . . Trap Hack Attempts . | . . . Triggered . | . . . Disarmed . | . . . Reprogrammed . | . . . Reused . | . . . Traps Extracted . | . . . Installed . | . . . Triggered . | . . . Machines | -11 -10 -9 ---------- Run | Yrd Mat Mat Machines Disabled 1 | . . 1 Max in Single Turn 1 | . . 1 Machines Repaired . | . . . Machines Dismantled . | . . . Machines Sabotaged . | . . . Overloaded Fab Kills . | . . . Hacking | -11 -10 -9 --------- Run | Yrd Mat Mat Machines Accessed 4 | . 3 1 Terminals 4 | . 3 1 Fabricators . | . . . Repair Stations . | . . . Recycling Units . | . . . Scanalyzers . | . . . Garrison Access . | . . . Total Hacks 10 | . 8 2 Successful 4 | . 2 2 Failed 6 | . 6 . Catastrophic 1 | . 1 . Database Lockouts . | . . . Manual . | . . . Terminals 10 | . 8 2 Fabricators . | . . . Repair Stations . | . . . Recycling Units . | . . . Scanalyzers . | . . . Garrison Access . | . . . Terminal Hacks 4 | . 2 2 Alert Level 2 | . 1 1 Locate Traps 1 | . . 1 Investigation Status 1 | . 1 . Fabricator Hacks . | . . . Repair Station Hacks . | . . . Recycling Unit Hacks . | . . . Scanalyzer . | . . . Garrison Access Hacks . | . . . Unauthorized Hacks . | . . . Terminals . | . . . Fabricators . | . . . Repair Stations . | . . . Recycling Units . | . . . Scanalyzers . | . . . Garrison Access . | . . . Data Cores Recovered . | . . . Used . | . . . Hacking Detections 3 | . 3 . Full Trace Events 2 | . 2 . Feedback Events . | . . . Feedback Blocked . | . . . Robot Schematics Acquired . | . . . Robots Built . | . . . Authchips . | . . . Time . | . . . Total Robot Build Rating . | . . . Part Schematics Acquired . | . . . Parts Built . | . . . Authchips . | . . . Time . | . . . Total Part Build Rating . | . . . Parts Repaired . | . . . Time . | . . . Parts Recycled . | . . . Recycled Matter . | . . . Retrieved Matter . | . . . Retrieved Components . | . . . Parts Scanalyzed . | . . . Part Schematics Acquired . | . . . Parts Damaged . | . . . Bothacking | -11 -10 -9 ------------ Run | Yrd Mat Mat Used RIF Installer . | . . . Robots Hacked . | . . . Non-combat . | . . . Combat . | . . . Robot Hacks Applied . | . . . Relay Couplers Released . | . . . Fabnet Peak Effective % . | . . . Robots Rewired . | . . . Allies Hacked . | . . . Hacks Repelled . | . . . Allies | -11 -10 -9 -------- Run | Yrd Mat Mat Total Allies . | . . . Largest Group . | . . . Highest-Rated Group . | . . . Highest-Rated Ally . | . . . Total Orders . | . . . Ally Attacks . | . . . Total Damage . | . . . Kills . | . . . Allies Corrupted . | . . . Allies Melted . | . . . Intel | -11 -10 -9 ------- Run | Yrd Mat Mat Robot Analysis Total . | . . . Derelict Logs Recovered . | . . . Drone Launches . | . . . Drone Recoveries . | . . . Exploration | -11 -10 -9 ------------- Run | Yrd Mat Mat Turns Passed 693 | 54 118 521 Spaces Moved 356 | 49 131 176 Core 1 | 1 . . Treads 42 | . . 42 Legs . | . . . Wheels 313 | 48 131 134 Hover . | . . . Flight . | . . . Fastest Speed 50 | 50 80 80 Average Speed 121 | 79 80 164 Slowest Speed 320 | 80 80 320 Overloaded Moves . | . . . Propulsion Burnouts . | . . . Robots Hopped . | . . . Cave-ins Triggered . | . . . Exploration Rate (%) 23 | 4 42 24 Regions Visited 2 Branch Regions . Pre-discovered Areas . | . . . Known Exits Taken 1 | . 1 . Unknown Exits Taken 1 | 1 . . Scrap Searched . | . . . Spaces Dug . | . . . Terrain Destroyed . | . . . Melee . | . . . Projectile . | . . . AOE . | . . . Terrain Rammed . | . . . Walls Destroyed . | . . . Machines Disabled . | . . . Actions | -11 -10 -9 --------- Run | Yrd Mat Mat Total 513 | 60 139 314 Wait 31 | . . 31 Move 354 | 48 130 176 Hop . | . . . Pick Up 18 | 6 2 10 Fast Attach 9 | 6 1 2 Attach 8 | . . 8 Detach . | . . . Swap 12 | . . 12 Drop 3 | . . 3 Fire 74 | . 3 71 Melee . | . . . Ram 4 | . 3 1 Kick . | . . . Crush . | . . . Escape Stasis . | . . . Rewire . | . . . Trap . | . . . Miscellaneous . | . . . Route ------- -11/Scrapyard -10/Materials -9/Materials History --------- Turn | Location | Event 7 | -11/Scrapyard | Discovered new exit (range 15) 55 | -11/Scrapyard | Entered Materials 165 | -10/Materials | Discovered new exit (range 16) 173 | -10/Materials | Identified exit to Materials 173 | -10/Materials | Entered another Materials area 173 | -9/Materials | Evolved 2 slots: Utility x2 307 | -9/Materials | Lost 5 parts (1p1n3w) 316 | -9/Materials | Build established: Mutant 363 | -9/Materials | Core integrity fell below 50% 665 | -9/Materials | Core integrity fell below 20% 694 | -9/Materials | Self-destructed Last Messages --------------- 00490_ K-01 Serf cleans the Recycling Unit. 00491_ Recycling unit begins recycling process. 00495_ Acquired 30 matter. 00495_ K-01 Serf collects debris. 00530_ Lgt. Armor Plating destroyed. 00540_ Com. Wheel destroyed. 00554_ G-47 Trooper destroyed. 00565_ Acquired 29 matter. 00568_ Acquired Imp. Heat Sink. 00569_ Acquired 10 matter. 00592_ K-01 Serf collects debris. 00594_ G-34 Mercenary destroyed. 00606_ Acquired 10 matter. 00631_ Critical hit (Burn: +37). 00644_ G-34 Mercenary destroyed. 00656_ Critical hit (Burn: +37). 00669_ Hvy. EM Pulse Gun destroyed. 00671_ Acquired 28 matter. 00682_ Hvy. EM Pulse Gun destroyed. 00692_ Adv. Beam Cannon destroyed. Map ----- +----------------------------------------------------+ | ?????????????????????????????????????????????????? | | ?????????????????????????????????????????????????? | | ?????????????????????????????????????????????????? | | ?????????????????????????????????????????????????? | | ?????????????????????????????????????????????????? | | ?????????????????????????????????????????????????? | | ?????????????????????????????????????????????????? | | ?????????????????????????????????????????????????? | | ?????????????????????????????????????????????????? | | ?????????????????????????????????????????????????? | | ?????????????????????????????????????????????????? | | ?????????????????????????????????????????????????? | | ?????????????????????????????????????????????????? | | ?????????????????????????????????????????????????? | | ??????????????????????????????????+??????????????? | | ?????????????????????????????????? ??????????????? | | ?????????????????????????????????? ??????????????? | | ?????????????????????????????????# #?????????????? | | ???????????????##########????????# #?????????????? | | ???????????????# #????????# #?????????????? | | ????######## ??# #????????# #?????????????? | | ? # #????????# #?????????????? | | ? + #????????# #?????????????? | | ? # #????????# #?????????????? | | ????#########??# !########## #?######??????? | | ???????????????# =kg@= g #? #??????? | | ???????????????# *##########%# #??????? | | ???????????????# #????????# # """ #??????? | | ???????????????##########????????# + """ #??????? | | ?????????????????????????????????# # """ #??????? | | ?????????????????????????????????# # #??????? | | ?????????????????????????????????# #?######??????? | | ?????????????????????????????????# #?????????????? | | ?????????????????????????????????# #???????? ????? | | ?????????????????????????????????# #???????# #???? | | ?????????????????????????????????# #??????? ??? | | ?????????????????????????????????# #??????# ??? | | ?????????????????????????????????# #??????# ??? | | ?????????????????????????????????# #??????# #??? | | ????????????????????????????????##+######## #??? | | ????????????????????????????????# # #### | | ????????????????????????????????# "" # | | ????????????????????????????????# "Y # | | ????????????????????????????????# "" """"+% | | ????????????????????????????????# """ # """ | | ????????????????????????????????# """ #% """ | | ????????????????????????????????# # """ | | ????????????????????????????????# # " " | | ????????????????????????????????########+## % | | ???????????????????????????????????????# | +----------------------------------------------------+ Best States ------------- Heat Dissipation 42 Energy Generation 10 Energy Capacity 250 Matter Stores 300 Matter Capacity 300 Sight Range 16 Terrain Scan Density 10 Armor Coverage 150 Evasion (%) 44 Recoil Reduction 2 Item Schematics ----------------- None Robot Schematics ------------------ None Fabricated ------------ Nothing Alien Tech Used ----------------- None Achievements -------------- None Challenges ------------ None Game ------ Seed RainbowExplosiveWarhead Manual? 0 Play Time 00:10:41 Cumulative 6.4 hours Start 2025.04.29 @ 22:28:55 End 2025.04.29 @ 22:39:24 Sessions 1 Manual Loads 0 Difficulty Rogue Special Mode None Game No. 8 Rogue 8 Adventurer 0 Explorer 0 Win Type - Total 0 Types 0/0/0/0/0/0/0/0/0 Lore% 3 Gallery% 11 Achievement% 10 Wizard Run 0 Options --------- Layout 1 ASCII 0 Keyboard 0 Movement Mouse Keybinds 0 Fullscreen 2 Font 32/Terminus Map View 50x35 Zoom Use 0% Tactical HUD 1 Map Filters NONE Filters NONE Steam 1 RUN: 79a357b8-f397-442d-a3db-c0c8db5a7cea